{"text_format":"1","workbook":"xlsx","n_sheets":1,"sheets":["2024"],"not_rendered":{"charts":0,"images":0,"macros":1,"external_links":0,"defined_names":1,"comments":1,"pivot_tables":0},"unopened":[],"bounds":{"document_bytes":16777216,"sheet_cells":100000,"rows_first":2000,"rows_last":500,"rows_between":2000,"halvings":0,"cell_chars":16384,"cell_head_chars":4096},"cells_cut":0,"cells_raw":0,"read":"whole","date_system":"1900"}

{"sheet":"2024","index":0,"n_rows":68,"n_cols":29,"rows_kept":68,"cut":false,"hidden":false,"merged":[[3,7,3,8],[66,6,66,12],[67,6,67,12],[7,4,7,5],[12,4,12,5],[4,10,4,11],[9,4,9,6],[10,4,10,6],[10,8,10,10],[3,10,3,11],[6,8,6,10],[5,8,5,10]]}
[]
[]
[null,null,null,null,null,null,{"$f":"IF(R3>20,1,2)","v":1},null,null,null,null,null,null,null,null,null,null,{"$f":"M4-E7","v":2024}]
[null,null,null,"Anmeldung","300m","Lostorf, Buchs AG",null,"Bitte Jahrgang eintragen",null,null,"Shooting Masters",null,2024,null,null,null,{"$f":"RIGHT(E8,LEN(E8)-SEARCH(\"@\",E8,1))","v":{"$error":"#VALUE!"}}]
[null,null,null,"Die unten angegebene Zeit ist die Startzeit zum ersten Wettkampfschuss."]
[null,null,null,"Name / Vorname","JG","Kategorie",null,"Geschlecht","Kader (Bitte auswählen)",null,null,null,"Lizenz"]
[null,null,null,null,null,{"$f":"IF(R3>21,\"ELITE\",\"JUNIOR/IN\")","v":"ELITE"},null,"Männlich","kein SSV Kader"]
[null,null,null,"E-Mail Adresse   "]
[]
[null,null,null,"Adresse   ",null,null,null,null,"Telefon"]
[null,null,null,"PLZ / Ort   "]
[]
[null,null,null,null,null,null,null,"Standardgewehr\nMänner / Frauen\n(offene Klasse)\n3 x 20","Liegend Gewehr\nMänner / Frauen\n","Freigewehr\nMänner / Frauen\n3 x 20"]
[]
[null,null,null,"Shooting Masters",1,"19. / 20. April 2024",null,null,null,null,null,null,null,null,null,null,false,false,false,null,null,null,null,null,null,null,null,null,"kein SSV Kader"]
[null,null,null,"Lostorf, Buchs AG",null,"Freitag",null,null,null,null,null,null,{"$f":"IF(U15=FALSE,\"\",\"Sa. 12:45-14:30\")","v":""},null,null,null,false,false,false,null,null,null,null,null,null,null,null,null,"Kader SpS (MN/E1-T4)"]
[null,null,null,null,null,null,null,null,null,null,null,null,null,null,null,null,false,false,null,null,null,null,null,null,null,null,null,null,"NWF (T4J, T3-T1)"]
[null,null,null,null,null,null,null,{"$f":"IF(Q15=FALSE,\"\",\"Fr. 09:30-11:15\")","v":""},{"$f":"IF(R15=FALSE,\"\",\"Fr. 13:30-14:20\")","v":""},{"$f":"IF(S15=FALSE,\"\",\"Fr. 15:30-17:15\")","v":""},null,null,{"$f":"IF(U16=FALSE,\"\",\"Fr. 16:00-16:50\")","v":""}]
[]
[null,null,null,null,null,"Samstag"]
[]
[null,null,null,null,null,null,null,{"$f":"IF(Q16=FALSE,\"\",\"Sa. 14:30-16:15\")","v":""},{"$f":"IF(R16=FALSE,\"\",\"Sa. 11:10-12:00\")","v":""},{"$f":"IF(S16=FALSE,\"\",\"Sa. 08:15-10:00\")","v":""},null,{"$f":"IF(U18=FALSE,\"\",\"Sa. 10:15-12:00\")","v":""}]
[]
[null,null,null,"Shooting Masters",2,"03. / 04. Mai 2024",null,null,null,null,null,null,null,null,null,null,false,false,false]
[null,null,null,"Lostorf, Buchs AG",null,"Freitag",null,null,null,null,null,null,{"$f":"IF(U24=FALSE,\"\",\"Sa. 12:45-14:30\")","v":""},null,null,null,false,false,false]
[null,null,null,null,null,null,null,null,null,null,null,null,null,null,null,null,false,false]
[null,null,null,null,null,null,null,{"$f":"IF(Q24=FALSE,\"\",\"Fr. 09:30-11:15\")","v":""},{"$f":"IF(R24=FALSE,\"\",\"Fr. 13:30-14:20\")","v":""},{"$f":"IF(S24=FALSE,\"\",\"Fr. 15:30-17:15\")","v":""}]
[]
[null,null,null,null,null,"Samstag"]
[]
[null,null,null,null,null,null,null,{"$f":"IF(Q25=FALSE,\"\",\"Sa. 14:30-16:15\")","v":""},{"$f":"IF(R25=FALSE,\"\",\"Sa. 11:10-12:00\")","v":""},{"$f":"IF(S25=FALSE,\"\",\"Sa. 08:15-10:00\")","v":""},null,{"$f":"IF(U27=FALSE,\"\",\"Sa. 10:15-12:00\")","v":""}]
[]
[null,null,null,"Shooting Masters",3,"07. / 08. Juni 2024",null,null,null,null,null,null,null,null,null,null,false,false,false]
[null,null,null,"Lostorf, Buchs AG",null,"Freitag",null,null,null,null,null,null,{"$f":"IF(U33=FALSE,\"\",\"Sa. 12:45-14:30\")","v":""},null,null,null,false,false,false]
[null,null,null,null,null,null,null,null,null,null,null,null,null,null,null,null,false,false,false]
[null,null,{"$f":"IF(W34=2,\"10m Shooting Masters zählt der Sonntag\",IF(X34=2,\"10m Shooting Masters zählt der Sonntag\",\"\"))","v":""},null,null,null,null,{"$f":"IF(Q33=FALSE,\"\",\"Fr. 09:30-11:15\")","v":""},{"$f":"IF(R33=FALSE,\"\",\"Fr. 13:30-14:20\")","v":""},{"$f":"IF(S33=FALSE,\"\",\"Fr. 15:30-17:15\")","v":""},{"$f":"IF(S35=FALSE,\"\",\"Fr. 08:45-11:45\")","v":""},{"$f":"IF(U35=FALSE,\"\",\"Fr. 17:00-18:00\")","v":""},{"$f":"IF(U34=FALSE,\"\",\"Fr. 16:00-16:50\")","v":""}]
[]
[null,null,null,null,null,"Samstag"]
[]
[null,null,null,null,null,null,null,{"$f":"IF(Q34=FALSE,\"\",\"Sa. 14:30-16:15\")","v":""},{"$f":"IF(R34=FALSE,\"\",\"Sa. 11:10-12:00\")","v":""},{"$f":"IF(S34=FALSE,\"\",\"Sa. 08:15-10:00\")","v":""},{"$f":"IF(T34=FALSE,\"\",\"Sa. 07:45-09:30\")","v":""},{"$f":"IF(U36=FALSE,\"\",\"Sa. 10:15-12:00\")","v":""},{"$f":"IF(R40=FALSE,\"\",\"Fr. 14:30-15:30\")","v":""}]
[]
[]
[]
[null,null,null,null,null,null,null,null,{"$f":"IF(R23=FALSE,\"\",\"So. 08:30-11:30\")","v":""},null,{"$f":"IF(T33=FALSE,\"\",\"So. 08:30-11:30\")","v":""}]
[]
[null,null,null,"Shooting Masters",4,"14. + 16. August 2015",null,null,null,null,null,null,null,null,null,null,false,false,false,false,false,null,null,null,{"$f":"COUNTIF(S46:S48,TRUE)","v":0},{"$f":"COUNTIF(T46:T48,TRUE)","v":0},{"$f":"COUNTIF(U46:U48,TRUE)","v":0}]
[null,null,null,null,null,null,null,null,null,null,null,null,null,null,null,null,false,false,false,false,false,false,{"$f":"COUNTIF(Q46:Q49,TRUE)","v":0},{"$f":"COUNTIF(R46:R49,TRUE)","v":0}]
[null,null,null,null,null,null,null,null,null,null,null,null,null,null,null,null,false,false]
[null,null,null,null,null,null,null,{"$f":"IF(T46=FALSE,\"\",\"Fr. 10:00-11:00\")","v":""},{"$f":"IF(S47=FALSE,\"\",\"Fr.10:00-11:00\")","v":""},null,null,null,null,null,null,null,false,false]
[]
[]
[null,null,null,"Shooting Masters",4,"22 + 23. August 2015",null,null,null,null,null,null,null,null,null,null,false,false,false,false,false,null,null,null,{"$f":"COUNTIF(S52:S54,TRUE)","v":0},{"$f":"COUNTIF(T52:T54,TRUE)","v":0},{"$f":"COUNTIF(U52:U54,TRUE)","v":0}]
[null,null,null,null,null,null,null,null,null,null,null,null,null,null,null,null,false,false,false,false,false,false,{"$f":"COUNTIF(Q53:Q55,TRUE)","v":0},{"$f":"COUNTIF(R52:R55,TRUE)","v":0}]
[null,null,null,null,null,null,null,null,null,null,null,null,null,null,null,null,false,false]
[null,null,null,null,null,null,null,{"$f":"IF(T52=FALSE,\"\",\"Sa. 13:45-14:45\")","v":""},{"$f":"IF(S53=FALSE,\"\",\"Sa.13:45-14:45\")","v":""},null,null,null,null,null,null,null,false,false]
[]
[]
[null,null,null,"Shooting Masters",6,"22. / 23. August 2009",null,null,null,null,null,null,null,null,null,null,false,false,false,false,false]
[null,null,null,null,null,{"$f":"IF(R59=FALSE,\"\",\"Samstag   09:00 - 10:45\")","v":""},null,null,{"$f":"IF(S58=FALSE,\"\",\"Sa. 15:30-16:45\")","v":""},null,null,null,null,null,null,null,false,false,null,false]
[null,null,null,null,null,{"$f":"IF(Q59=FALSE,\"\",\"Samstag   11:15 - 12:30\")","v":""},null,null,null,null,null,null,null,null,null,null,false,false]
[null,null,null,null,null,{"$f":"IF(AND(R60=FALSE,Q60=FALSE),\"\",\"Samstag   13:00 - 14:15/14:45\")","v":""},null,null,null,null,null,null,null,null,null,null,false,false]
[null,null,null,null,null,{"$f":"IF(AND(R61=FALSE,Q61=FALSE),\"\",\"Samstag   15:15 - 16:30/17:00\")","v":""}]
[]
[]
[null,null,null,"Meldetermin","Montag 20:00 Uhr vor dem Shooting Masters"]
[]
[null,null,null,null,null,"Bemerkungen / Wünsche"]
[null,null,null,"ssv@armando-amrein.ch"]